fUST/lending_fUST_20241112
["ID","MTS","AMOUNT","RATE_DAILY","PERIOD"]
[342079666,1731414648153,-500.0,0.00021917,2]
[342079667,1731414648162,-500.0,0.00021917,2]
[342079668,1731414648171,-500.0,0.00021917,2]
[342079669,1731414648181,-574.01678737,0.00021917,2]
[342079670,1731414648190,-586.18681719,0.00021917,2]
[342079671,1731414648200,-500.0,0.00021917,2]
[342079672,1731414648209,-500.0,0.00021917,2]
[342079673,1731414648219,-500.0,0.00021917,2]
[342079674,1731414648228,-503.07934457,0.00021917,2]
[342079675,1731414648238,-515.71016255,0.00021917,2]
[342079676,1731414648247,-501.54746863,0.00021917,2]
[342079677,1731414648263,-500.0,0.00021917,2]
[342079678,1731414648273,-500.0,0.00021917,2]
[342079679,1731414648282,-315.98841706,0.00021917,2]
[342079680,1731414648291,-506.81905352,0.00021917,2]
[342079681,1731414648301,-151.0,0.00021917,2]
[342079682,1731414648310,-151.0,0.00021917,2]
[342079683,1731414648320,-151.0,0.00021917,2]
[342079684,1731414648330,-151.0,0.00021917,2]
[342079685,1731414648339,-500.0,0.00021917,2]
[342079686,1731414648348,-500.0,0.00021917,2]
[342079687,1731414648358,-151.0,0.00021917,2]
[342079688,1731414648367,-500.0,0.00021917,2]
[342079689,1731414648377,-151.0,0.00021917,2]
[342079690,1731414648386,-151.0,0.00021917,2]
[342079691,1731414648396,-500.0,0.00021917,2]
[342079692,1731414648405,-151.0,0.00021917,2]
[342079693,1731414648414,-500.0,0.00021917,2]
[342079694,1731414648423,-1057.8,0.00021917,2]
[342079695,1731414648433,-500.0,0.00021917,2]
[342079696,1731414648442,-502.97165107,0.00021917,2]
[342079697,1731414648452,-475.0492191,0.00021917,2]
[342079698,1731414648612,-24.9507809,0.00021917,2]
[342079699,1731414648622,-500.0,0.00021917,2]
[342079700,1731414648631,-500.0,0.00021917,2]
[342079701,1731414648641,-500.0,0.00021917,2]
[342079702,1731414648650,-500.0,0.00021917,2]
[342079703,1731414648659,-786.6,0.00021917,2]
[342079704,1731414648669,-500.0,0.00021917,2]
[342079705,1731414648678,-500.0,0.00021917,2]
[342079706,1731414648688,-500.0,0.00021917,2]
[342079707,1731414648697,-48.2983191,0.00021917,2]
[342079732,1731415146066,1169.27083333,0.00020843,2]
[342079740,1731415225204,29163.09117536,0.0002,7]
[342079742,1731415294609,163.395681,0.00013973,2]
[342079751,1731415457707,1169.27083333,0.00020843,2]
[342079754,1731415499766,2384.91,0.00020508,2]
[342079773,1731415737150,-17.96021995,0.000278,120]
[342079774,1731415737185,-19982.03978005,0.0003,120]
[342079775,1731415768902,1169.27083333,0.00020843,2]
[342079803,1731415832082,-164.08425,0.00020844,2]
[342079804,1731415832091,-534.45,0.000209,2]
[342079806,1731415832101,-225.07805,0.00020926,2]
[342079807,1731415832112,-4938.76064469,0.00021548,2]
[342079808,1731415832121,-553.72230831,0.00021816,2]
[342079810,1731415832130,-300.0,0.00021816,2]
[342079812,1731415832140,-13935.79505073,0.00021817,2]
[342079815,1731415832152,-175.7589562,0.00021817,2]
[342079817,1731415832161,-1005.6471988,0.00021817,2]
[342079819,1731415832176,-1858.22268431,0.00021817,2]
[342079829,1731415832284,-381.99999,0.00021817,2]
[342079831,1731415832296,-2384.91,0.00021817,2]
[342079907,1731415838272,-1169.27083333,0.00020843,2]
[342079908,1731415838281,-369.22012689,0.00021817,2]
[342079909,1731415838295,-500.0,0.00021817,2]
[342079910,1731415838304,-235.52034127,0.00021817,2]
[342079911,1731415838313,-4938.76064469,0.0002185,2]
[342079912,1731415838323,-252.45421343,0.00021916,2]
[342079913,1731415838333,-165.36863569,0.00021916,2]
[342079914,1731415838342,-517.34360043,0.00021917,2]
[342079915,1731415838354,-151.0,0.00021917,2]
[342079916,1731415838366,-151.0,0.00021917,2]
[342079917,1731415838376,-153.063859,0.00021917,2]
[342079918,1731415838386,-96.99774527,0.00021917,2]
[342079920,1731415838447,-54.00225473,0.00021917,2]
[342079921,1731415838456,-151.0,0.00021917,2]
[342079922,1731415838466,-151.0,0.00021917,2]
[342079923,1731415838475,-151.0,0.00021917,2]
[342079924,1731415838484,-151.0,0.00021917,2]
[342079925,1731415838493,-151.0,0.00021917,2]
[342079926,1731415838502,-211.912064,0.00021917,2]
[342079927,1731415838512,-151.992848,0.00021917,2]
[342079928,1731415838521,-151.0,0.00021917,2]
[342079929,1731415838530,-151.0,0.00021917,2]
[342079930,1731415838540,-151.0,0.00021917,2]
[342079931,1731415838549,-274.309488,0.00021917,2]
[342079932,1731415838561,-151.0,0.00021917,2]
[342079933,1731415838571,-151.0,0.00021917,2]
[342079934,1731415838580,-500.0,0.00021917,2]
[342079935,1731415838590,-524.07574945,0.00021917,2]
[342079936,1731415838599,-277.40050083,0.00021917,2]
[342079937,1731415838608,-500.0,0.00021917,2]
[342079938,1731415838623,-500.0,0.00021917,2]
[342079939,1731415838632,-500.0,0.00021917,2]
[342079940,1731415838641,-1970.9,0.00021917,2]
[342079941,1731415838650,-500.0,0.00021917,2]
[342079942,1731415838659,-500.0,0.00021917,2]
[342079943,1731415838668,-500.0,0.00021917,2]
[342079944,1731415838677,-500.0,0.00021917,2]
[342079945,1731415838686,-236.276673,0.00021917,2]
[342079946,1731415838695,-236.276673,0.00021917,2]
[342079947,1731415838704,-236.276673,0.00021917,2]
[342079948,1731415838713,-236.276673,0.00021917,2]
[342079949,1731415838723,-236.276673,0.00021917,2]
[342079950,1731415838732,-500.0,0.00021917,2]
[342079951,1731415838742,-236.276673,0.00021917,2]
[342079952,1731415838751,-500.0,0.00021917,2]
[342079953,1731415838761,-500.0,0.00021917,2]
[342079954,1731415838770,-500.0,0.00021917,2]
[342079955,1731415838779,-381.99523059,0.00021917,2]
[342079956,1731415838789,-500.0,0.00021917,2]
[342079957,1731415838798,-500.0,0.00021917,2]
[342079958,1731415838808,-500.0,0.00021917,2]
[342079959,1731415838817,-500.0,0.00021917,2]
[342079960,1731415838826,-500.0,0.00021917,2]
[342079961,1731415838835,-500.0,0.00021917,2]
[342079962,1731415838843,-500.0,0.00021917,2]
[342079963,1731415838853,-151.0,0.00021917,2]
[342079964,1731415838867,-196.540752,0.00021917,2]
[342079965,1731415838876,-596.51173812,0.00021917,2]
[342079966,1731415838885,-500.0,0.00021917,2]
[342079967,1731415838894,-500.0,0.00021917,2]
[342079968,1731415838903,-500.0,0.00021917,2]
[342079969,1731415838911,-615.70680579,0.00021917,2]
[342079970,1731415838920,-500.0,0.00021917,2]
[342079971,1731415838929,-500.0,0.00021917,2]
[342079972,1731415838939,-151.0,0.00021917,2]
[342079973,1731415838948,-500.0,0.00021917,2]
[342079974,1731415838957,-151.0,0.00021917,2]
[342079975,1731415838966,-151.0,0.00021917,2]
[342079976,1731415838976,-500.0,0.00021917,2]
[342079977,1731415838986,-500.0,0.00021917,2]
[342079978,1731415838995,-500.0,0.00021917,2]
[342079979,1731415839004,-504.417405,0.00021917,2]
[342079980,1731415839099,-500.0,0.00021917,2]
[342079981,1731415839109,-500.0,0.00021917,2]
[342079982,1731415839127,-500.0,0.00021917,2]
[342079983,1731415839137,-500.0,0.00021917,2]
[342079984,1731415839146,-500.0,0.00021917,2]
[342079985,1731415839155,-500.0,0.00021917,2]
[342079986,1731415839164,-500.0,0.00021917,2]
[342079987,1731415839173,-502.47913188,0.00021917,2]
[342079988,1731415839182,-500.0,0.00021917,2]
[342079989,1731415839191,-500.0,0.00021917,2]
[342079990,1731415839200,-500.0,0.00021917,2]
[342079991,1731415839210,-500.0,0.00021917,2]
[342079992,1731415839220,-500.0,0.00021917,2]
[342079993,1731415839229,-500.0,0.00021917,2]
[342079994,1731415839239,-500.0,0.00021917,2]
[342079995,1731415839248,-500.0,0.00021917,2]
[342079996,1731415839257,-500.0,0.00021917,2]
[342079997,1731415839266,-194.788329,0.00021917,2]
[342079998,1731415839275,-194.788329,0.00021917,2]
[342079999,1731415839285,-525.10217078,0.00021917,2]
[342080000,1731415839294,-194.788329,0.00021917,2]
[342080001,1731415839303,-194.788329,0.00021917,2]
[342080002,1731415839312,-500.0,0.00021917,2]
[342080003,1731415839321,-501.18864326,0.00021917,2]
[342080004,1731415839330,-500.0,0.00021917,2]
[342080005,1731415839342,-500.0,0.00021917,2]
[342080006,1731415839352,-500.0,0.00021917,2]
[342080007,1731415839361,-500.0,0.00021917,2]
[342080008,1731415839374,-163.15862865,0.00021917,2]
[342080009,1731415839386,-500.0,0.00021917,2]
[342080010,1731415839395,-851.97872525,0.00021917,2]
[342080011,1731415839404,-500.0,0.00021917,2]
[342080012,1731415839413,-500.0,0.00021917,2]
[342080013,1731415839423,-279.89183106,0.00021917,2]
[342080014,1731415839433,-544.28589609,0.00021917,2]
[342080015,1731415839442,-504.67424249,0.00021917,2]
[342080016,1731415839451,-500.0,0.00021917,2]
[342080017,1731415839460,-500.0,0.00021917,2]
[342080018,1731415839470,-500.0,0.00021917,2]
[342080019,1731415839479,-500.0,0.00021917,2]
[342080020,1731415839488,-500.0,0.00021917,2]
[342080021,1731415839497,-641.64401351,0.00021917,2]
[342080022,1731415839506,-500.0,0.00021917,2]
[342080023,1731415839515,-500.0,0.00021917,2]
[342080024,1731415839524,-500.0,0.00021917,2]
[342080025,1731415839534,-500.0,0.00021917,2]
[342080026,1731415839543,-500.0,0.00021917,2]
[342080027,1731415839563,-1013.73,0.00021917,2]
[342080028,1731415839574,-500.0,0.00021917,2]
[342080029,1731415839584,-151.0,0.00021917,2]
[342080030,1731415839594,-151.0,0.00021917,2]
[342080031,1731415839604,-151.0,0.00021917,2]
[342080032,1731415839616,-753.82,0.00021917,2]
[342080033,1731415839626,-151.0,0.00021917,2]
[342080034,1731415839636,-451.7016809,0.00021917,2]
[342080035,1731415839646,-500.0,0.00021917,2]
[342080037,1731415839656,-500.0,0.00021917,2]
[342080039,1731415839666,-151.31023586,0.00021917,2]
[342080040,1731415839676,-500.0,0.00021917,2]
[342080041,1731415839687,-300.60839462,0.00021917,2]
[342080042,1731415839697,-378.81593139,0.00021917,2]
[342080043,1731415839707,-151.0,0.00021917,2]
[342080044,1731415839716,-151.0,0.00021917,2]
[342080045,1731415839726,-500.0,0.00021917,2]
[342080046,1731415839736,-500.0,0.00021917,2]
[342080047,1731415839745,-500.0,0.00021917,2]
[342080048,1731415839755,-500.0,0.00021917,2]
[342080050,1731415839765,-500.0,0.00021917,2]
[342080052,1731415839774,-500.0,0.00021917,2]
[342080053,1731415839784,-383.48744995,0.00021917,2]
[342080054,1731415839793,-151.0,0.00021917,2]
[342080055,1731415839803,-151.0,0.00021917,2]
[342080056,1731415839812,-151.0,0.00021917,2]
[342080058,1731415839822,-151.0,0.00021917,2]
[342080060,1731415839831,-500.0,0.00021917,2]
[342080062,1731415839841,-155.988896,0.00021917,2]
[342080063,1731415839850,-500.0,0.00021917,2]
[342080064,1731415839859,-151.0,0.00021917,2]
[342080065,1731415839875,-151.0,0.00021917,2]
[342080066,1731415839885,-500.0,0.00021917,2]
[342080068,1731415839895,-151.0,0.00021917,2]
[342080069,1731415839904,-208.91411871,0.00021917,2]
[342080070,1731415839914,-151.0,0.00021917,2]
[342080071,1731415839923,-544.45,0.00021917,2]
[342080072,1731415839932,-538.83429899,0.00021917,2]
[342080074,1731415839942,-399.5719234,0.00021917,2]
[342080122,1731415843227,-100.4280766,0.00021917,2]
[342080123,1731415843237,-500.0,0.00021917,2]
[342080124,1731415843247,-151.0,0.00021917,2]
[342080125,1731415843257,-500.0,0.00021917,2]
[342080126,1731415843266,-151.0,0.00021917,2]
[342080127,1731415843275,-151.0,0.00021917,2]
[342080128,1731415843284,-151.0,0.00021917,2]
[342080129,1731415843293,-500.0,0.00021917,2]
[342080130,1731415843303,-500.0,0.00021917,2]
[342080131,1731415843312,-155.06569971,0.00021917,2]
[342080155,1731415846134,-344.93430029,0.00021917,2]
[342080156,1731415846143,-331.69570707,0.00021917,2]
[342080158,1731415846153,-500.0,0.00021917,2]
[342080160,1731415846162,-500.0,0.00021917,2]
[342080161,1731415846172,-500.0,0.00021917,2]
[342080162,1731415846183,-500.0,0.00021917,2]
[342080163,1731415846195,-500.0,0.00021917,2]
[342080164,1731415846205,-500.83473165,0.00021917,2]
[342080165,1731415846216,-151.0,0.00021917,2]
[342080166,1731415846226,-151.0,0.00021917,2]
[342080167,1731415846236,-500.0,0.00021917,2]
[342080168,1731415846246,-151.0,0.00021917,2]
[342080169,1731415846257,-151.0,0.00021917,2]
[342080170,1731415846267,-500.0,0.00021917,2]
[342080171,1731415846277,-500.0,0.00021917,2]
[342080172,1731415846288,-288.44046552,0.00021917,2]
[342080173,1731415846298,-500.0,0.00021917,2]
[342080174,1731415846308,-708.37,0.00021917,2]
[342080175,1731415846319,-519.48923598,0.00021917,2]
[342080176,1731415846329,-500.0,0.00021917,2]
[342080177,1731415846340,-500.0,0.00021917,2]
[342080178,1731415846353,-500.0,0.00021917,2]
[342080179,1731415846364,-500.0,0.00021917,2]
[342080180,1731415846376,-194.42145591,0.00021917,2]
[342080181,1731415846388,-500.0,0.00021917,2]
[342080182,1731415846398,-151.0,0.00021917,2]
[342080183,1731415846408,-500.0,0.00021917,2]
[342080184,1731415846419,-500.0,0.00021917,2]
[342080185,1731415846430,-500.0,0.00021917,2]
[342080186,1731415846440,-151.0,0.00021917,2]
[342080187,1731415846450,-151.0,0.00021917,2]
[342080188,1731415846460,-500.0,0.00021917,2]
[342080189,1731415846471,-500.0,0.00021917,2]
[342080190,1731415846481,-151.0,0.00021917,2]
[342080191,1731415846492,-151.0,0.00021917,2]
[342080192,1731415846502,-500.0,0.00021917,2]
[342080193,1731415846521,-500.0,0.00021917,2]
[342080194,1731415846539,-500.0,0.00021917,2]
[342080195,1731415846554,-500.0,0.00021917,2]
[342080196,1731415846570,-500.0,0.00021917,2]
[342080197,1731415846587,-500.0,0.00021917,2]
[342080198,1731415846603,-500.0,0.00021917,2]
[342080199,1731415846618,-216.491807,0.00021917,2]
[342080200,1731415846639,-216.491807,0.00021917,2]
[342080201,1731415846657,-500.0,0.00021917,2]
[342080202,1731415846670,-216.491807,0.00021917,2]
[342080203,1731415846683,-216.491807,0.00021917,2]
[342080204,1731415846701,-500.0,0.00021917,2]
[342080205,1731415846715,-216.491807,0.00021917,2]
[342080206,1731415846728,-151.272415,0.00021917,2]
[342080207,1731415846744,-216.491807,0.00021917,2]
[342080208,1731415846757,-151.272415,0.00021917,2]
[342080209,1731415846772,-216.491807,0.00021917,2]
[342080210,1731415846787,-151.272415,0.00021917,2]
[342080211,1731415846804,-216.491807,0.00021917,2]
[342080212,1731415846821,-232.43662554,0.00021917,2]
[342080213,1731415846837,-151.272415,0.00021917,2]
[342080214,1731415846849,-151.272415,0.00021917,2]
[342080215,1731415846862,-500.0,0.00021917,2]
[342080216,1731415846883,-468.35750796,0.00021917,2]
[342080217,1731415846898,-500.0,0.00021917,2]
[342080218,1731415846909,-151.272415,0.00021917,2]
[342080219,1731415846922,-151.272415,0.00021917,2]
[342080220,1731415846938,-151.272415,0.00021917,2]
[342080221,1731415846951,-503.98862093,0.00021917,2]
[342080222,1731415846963,-151.272415,0.00021917,2]
[342080223,1731415846977,-151.272415,0.00021917,2]
[342080224,1731415846992,-537.56981005,0.00021917,2]
[342080225,1731415847006,-500.0,0.00021917,2]
[342080226,1731415847020,-2336.0,0.00021917,2]
[342080227,1731415847033,-500.0,0.00021917,2]
[342080228,1731415847046,-500.0,0.00021917,2]
[342080229,1731415847057,-500.0,0.00021917,2]
[342080230,1731415847069,-500.0,0.00021917,2]
[342080231,1731415847082,-500.0,0.00021917,2]
[342080232,1731415847096,-500.0,0.00021917,2]
[342080233,1731415847108,-2246.25,0.00021917,2]
[342080234,1731415847123,-151.0,0.00021917,2]
[342080235,1731415847136,-500.0,0.00021917,2]
[342080236,1731415847148,-500.0,0.00021917,2]
[342080237,1731415847160,-151.0,0.00021917,2]
[342080238,1731415847172,-151.0,0.00021917,2]
[342080239,1731415847185,-151.0,0.00021917,2]
[342080240,1731415847198,-192.559733,0.00021917,2]
[342080241,1731415847211,-500.0,0.00021917,2]
[342080242,1731415847223,-500.0,0.00021917,2]
[342080243,1731415847235,-500.0,0.00021917,2]
[342080244,1731415847247,-508.98404572,0.00021917,2]
[342080245,1731415847260,-500.0,0.00021917,2]
[342080246,1731415847272,-500.0,0.00021917,2]
[342080247,1731415847284,-526.54183215,0.00021917,2]
[342080248,1731415847296,-500.0,0.00021917,2]
[342080249,1731415847308,-511.52229824,0.00021917,2]
[342080250,1731415847321,-500.0,0.00021917,2]
[342080251,1731415847332,-500.0,0.00021917,2]
[342080252,1731415847345,-500.0,0.00021917,2]
[342080253,1731415847361,-500.0,0.00021917,2]
[342080254,1731415847377,-657.25,0.00021917,2]
[342080255,1731415847391,-500.0,0.00021917,2]
[342080256,1731415847403,-500.0,0.00021917,2]
[342080257,1731415847415,-500.0,0.00021917,2]
[342080258,1731415847429,-500.0,0.00021917,2]
[342080259,1731415847440,-500.0,0.00021917,2]
[342080260,1731415847450,-500.0,0.00021917,2]
[342080261,1731415847459,-500.0,0.00021917,2]
[342080262,1731415847468,-500.0,0.00021917,2]
[342080263,1731415847478,-500.0,0.00021917,2]
[342080264,1731415847488,-500.0,0.00021917,2]
[342080265,1731415847631,-161.76408677,0.00021917,2]
[342080266,1731415847646,-500.0,0.00021917,2]
[342080267,1731415847655,-178.69489092,0.00021917,2]
[342080268,1731415847665,-535.51903949,0.00021917,2]
[342080269,1731415847677,-500.0,0.00021917,2]
[342080270,1731415847686,-883.62,0.00021917,2]
[342080271,1731415847695,-500.0,0.00021917,2]
[342080272,1731415847704,-500.0,0.00021917,2]
[342080273,1731415847713,-500.0,0.00021917,2]
[342080274,1731415847722,-500.0,0.00021917,2]
[342080275,1731415847731,-151.0,0.00021917,2]
[342080276,1731415847741,-151.0,0.00021917,2]
[342080277,1731415847750,-184.770657,0.00021917,2]
[342080278,1731415847759,-1011.75,0.00021917,2]
[342080279,1731415847769,-500.0,0.00021917,2]
[342080280,1731415847779,-522.59,0.00021917,2]
[342080281,1731415847788,-500.0,0.00021917,2]
[342080282,1731415847798,-500.0,0.00021917,2]
[342080283,1731415847807,-608.90226024,0.00021917,2]
[342080284,1731415847817,-500.0,0.00021917,2]
[342080285,1731415847826,-1831.69,0.00021917,2]
[342080286,1731415847835,-500.0,0.00021917,2]
[342080287,1731415847844,-500.0,0.00021917,2]
[342080288,1731415847853,-1511.38,0.00021917,2]
[342080289,1731415847863,-500.0,0.00021917,2]
[342080290,1731415847874,-500.0,0.00021917,2]
[342080291,1731415847883,-648.42,0.00021917,2]
[342080292,1731415847892,-515.08155479,0.00021917,2]
[342080293,1731415847901,-1290.58,0.00021917,2]
[342080294,1731415847910,-511.44,0.00021917,2]
[342080295,1731415847919,-500.0,0.00021917,2]
[342080296,1731415847928,-519.24064583,0.00021917,2]
[342080297,1731415847937,-500.0,0.00021917,2]
[342080298,1731415847947,-500.0,0.00021917,2]
[342080299,1731415847957,-276.495,0.00021917,2]
[342080300,1731415847966,-500.0,0.00021917,2]
[342080301,1731415847976,-276.495,0.00021917,2]
[342080302,1731415847985,-276.495,0.00021917,2]
[342080303,1731415847995,-276.495,0.00021917,2]
[342080304,1731415848004,-500.0,0.00021917,2]
[342080305,1731415848013,-500.0,0.00021917,2]
[342080306,1731415848022,-276.495,0.00021917,2]
[342080307,1731415848031,-276.495,0.00021917,2]
[342080308,1731415848041,-1089.53,0.00021917,2]
[342080309,1731415848050,-500.0,0.00021917,2]
[342080310,1731415848059,-500.0,0.00021917,2]
[342080311,1731415848069,-276.495,0.00021917,2]
[342080312,1731415848079,-276.495,0.00021917,2]
[342080313,1731415848088,-1225.07,0.00021917,2]
[342080314,1731415848098,-500.0,0.00021917,2]
[342080315,1731415848107,-6623.63,0.00021917,2]
[342080316,1731415848116,-500.0,0.00021917,2]
[342080317,1731415848130,-632.14001942,0.00021917,2]
[342080318,1731415848140,-570.66,0.00021917,2]
[342080319,1731415848150,-500.0,0.00021917,2]
[342080320,1731415848160,-500.0,0.00021917,2]
[342080321,1731415848170,-500.0,0.00021917,2]
[342080322,1731415848180,-737.22,0.00021917,2]
[342080323,1731415848190,-500.0,0.00021917,2]
[342080324,1731415848200,-509.02768448,0.00021917,2]
[342080325,1731415848210,-500.0,0.00021917,2]
[342080326,1731415848219,-540.34143649,0.00021917,2]
[342080327,1731415848228,-500.0,0.00021917,2]
[342080328,1731415848238,-500.0,0.00021917,2]
[342080329,1731415848248,-1135.36,0.00021917,2]
[342080330,1731415848258,-500.0,0.00021917,2]
[342080331,1731415848267,-502.6,0.00021917,2]
[342080332,1731415848277,-928.66,0.00021917,2]
[342080333,1731415848286,-500.88286344,0.00021917,2]
[342080334,1731415848297,-201.986833,0.00021917,2]
[342080335,1731415848307,-500.0,0.00021917,2]
[342080336,1731415848317,-509.11958304,0.00021917,2]
[342080337,1731415848327,-500.0,0.00021917,2]
[342080338,1731415848336,-973.77,0.00021917,2]
[342080339,1731415848347,-500.0,0.00021917,2]
[342080340,1731415848357,-500.0,0.00021917,2]
[342080341,1731415848367,-1151.96,0.00021917,2]
[342080342,1731415848381,-503.12537179,0.00021917,2]
[342080343,1731415848391,-946.24,0.00021917,2]
[342080344,1731415848400,-2937.22,0.00021917,2]
[342080345,1731415848410,-151.0,0.00021917,2]
[342080346,1731415848420,-204.266052,0.00021917,2]
[342080347,1731415848430,-151.0,0.00021917,2]
[342080348,1731415848440,-204.266052,0.00021917,2]
[342080349,1731415848449,-151.0,0.00021917,2]
[342080350,1731415848459,-204.266052,0.00021917,2]
[342080351,1731415848468,-151.0,0.00021917,2]
[342080352,1731415848478,-204.266052,0.00021917,2]
[342080353,1731415848488,-511.6832253,0.00021917,2]
[342080354,1731415848497,-500.0,0.00021917,2]
[342080355,1731415848506,-204.266052,0.00021917,2]
[342080356,1731415848517,-204.266052,0.00021917,2]
[342080357,1731415848526,-204.266052,0.00021917,2]
[342080358,1731415848536,-204.266052,0.00021917,2]
[342080359,1731415848545,-500.0,0.00021917,2]
[342080360,1731415848554,-151.0,0.00021917,2]
[342080361,1731415848563,-156.37937,0.00021917,2]
[342080362,1731415848573,-500.0,0.00021917,2]
[342080363,1731415848582,-500.0,0.00021917,2]
[342080364,1731415848592,-500.0,0.00021917,2]
[342080365,1731415848602,-500.0,0.00021917,2]
[342080366,1731415848611,-1327.75,0.00021917,2]
[342080367,1731415848621,-500.0,0.00021917,2]
[342080368,1731415848633,-500.0,0.00021917,2]
[342080369,1731415848642,-500.0,0.00021917,2]
[342080370,1731415848652,-500.0,0.00021917,2]
[342080371,1731415848661,-500.0,0.00021917,2]
[342080372,1731415848671,-500.0,0.00021917,2]
[342080373,1731415848680,-7711.53,0.00021917,2]
[342080374,1731415848689,-500.0,0.00021917,2]
[342080375,1731415848699,-857.71,0.00021917,2]
[342080376,1731415848709,-500.0,0.00021917,2]
[342080377,1731415848719,-521.74223218,0.00021917,2]
[342080378,1731415848729,-500.0,0.00021917,2]
[342080379,1731415848738,-201.76032042,0.00021917,2]
[342080380,1731415848748,-500.0,0.00021917,2]
[342080381,1731415848757,-500.0,0.00021917,2]
[342080382,1731415848767,-500.0,0.00021917,2]
[342080383,1731415848776,-745.71,0.00021917,2]
[342080384,1731415848785,-500.0,0.00021917,2]
[342080385,1731415848795,-618.55851878,0.00021917,2]
[342080386,1731415848805,-259.44494162,0.00021917,2]
[342080387,1731415848814,-500.0,0.00021917,2]
[342080388,1731415848823,-500.0,0.00021917,2]
[342080389,1731415848833,-158.209045,0.00021917,2]
[342080390,1731415848843,-500.0,0.00021917,2]
[342080391,1731415848852,-500.0,0.00021917,2]
[342080392,1731415848862,-151.0,0.00021917,2]
[342080393,1731415848876,-151.0,0.00021917,2]
[342080394,1731415848885,-151.0,0.00021917,2]
[342080395,1731415848895,-598.00750615,0.00021917,2]
[342080396,1731415848906,-151.0,0.00021917,2]
[342080397,1731415848916,-151.0,0.00021917,2]
[342080398,1731415848927,-151.0,0.00021917,2]
[342080399,1731415848936,-151.0,0.00021917,2]
[342080400,1731415848947,-151.0,0.00021917,2]
[342080401,1731415848959,-500.0,0.00021917,2]
[342080402,1731415848970,-151.0,0.00021917,2]
[342080403,1731415848981,-151.0,0.00021917,2]
[342080404,1731415848992,-151.0,0.00021917,2]
[342080405,1731415849001,-500.0,0.00021917,2]
[342080406,1731415849011,-500.0,0.00021917,2]
[342080407,1731415849022,-151.0,0.00021917,2]
[342080408,1731415849031,-500.0,0.00021917,2]
[342080409,1731415849040,-500.0,0.00021917,2]
[342080410,1731415849050,-3252.92,0.00021917,2]
[342080411,1731415849060,-500.0,0.00021917,2]
[342080412,1731415849070,-500.0,0.00021917,2]
[342080413,1731415849079,-1541.89,0.00021917,2]
[342080414,1731415849088,-151.0,0.00021917,2]
[342080415,1731415849098,-152.238519,0.00021917,2]
[342080416,1731415849107,-633.25863205,0.00021917,2]
[342080417,1731415849116,-500.0,0.00021917,2]
[342080418,1731415849127,-11692.14,0.00021917,2]
[342080419,1731415849136,-543.88530108,0.00021917,2]
[342080420,1731415849146,-151.0,0.00021917,2]
[342080421,1731415849155,-613.85,0.00021917,2]
[342080422,1731415849164,-151.0,0.00021917,2]
[342080423,1731415849173,-151.0,0.00021917,2]
[342080424,1731415849183,-151.0,0.00021917,2]
[342080425,1731415849192,-500.0,0.00021917,2]
[342080426,1731415849201,-151.34285,0.00021917,2]